bitfinex-derivatives/quotes_BTCF0:USTF0_20250308
["timestamp","ask_amount","ask_price","bid_price","bid_amount"]
[1741410067818,0.00021379,86342.0,86341.0,0.05816049]
[1741410070327,0.00021379,86342.0,86341.0,0.41896049]
[1741410071037,0.00021379,86342.0,86341.0,0.4766406]
[1741410071224,0.3608,86354.0,86353.0,0.1158245]
[1741410073430,0.35999381,86354.0,86353.0,0.1158245]
[1741410073930,0.35999381,86354.0,86353.0,0.05814439]
[1741410075235,0.1158272,86351.0,86350.0,0.1101]
[1741410075625,0.1158272,86351.0,86341.0,0.36947968]
[1741410075828,0.1158339,86346.0,86342.0,0.19102]
[1741410076138,0.4766339,86346.0,86341.0,0.00867968]
[1741410077032,0.057921,86340.0,86330.0,0.13890739]
[1741410077231,0.1158514,86333.0,86330.0,0.13890739]
[1741410077431,0.1073,86339.0,86323.0,0.13890739]
[1741410077432,0.1073,86332.0,86323.0,0.13890739]
[1741410077624,0.1158634,86324.0,86323.0,0.13890739]
[1741410077829,0.1158648,86323.0,86322.0,0.00846466]
[1741410078131,0.1158755,86315.0,86314.0,0.53589067]
[1741410078728,0.1158755,86315.0,86314.0,0.42001447]
[1741410079628,0.1158755,86315.0,86314.0,0.76659137]
[1741410080139,0.1158755,86315.0,86314.0,0.70891126]
[1741410080340,0.1158755,86315.0,86314.0,0.71774543]
[1741410080541,0.1158755,86315.0,86314.0,0.41462554]
[1741410081735,0.1158755,86315.0,86314.0,0.29874864]
[1741410082443,0.1158755,86315.0,86314.0,0.00900796]
[1741410083035,0.1158755,86315.0,86314.0,0.00938888]
[1741410083235,0.1652367,86317.0,86312.0,0.00173795]
[1741410083236,0.1158769,86314.0,86313.0,0.2148]
[1741410083639,0.1686373,86316.0,86312.0,0.00173795]
[1741410083874,0.2299782,86313.0,86312.0,0.01052524]
[1741410084143,0.2299782,86313.0,86312.0,0.00173795]
[1741410084446,0.5907782,86313.0,86312.0,0.00173795]
[1741410085039,0.4749,86313.0,86311.0,0.00068]
[1741410085241,0.1159064,86292.0,86291.0,0.07672]
[1741410085437,0.1159064,86292.0,86291.0,0.25115178]
[1741410085638,0.1159064,86292.0,86291.0,0.35644408]
[1741410085837,0.1159064,86292.0,86291.0,0.24904408]
[1741410086145,0.1159064,86292.0,86291.0,0.11464397]
[1741410086348,0.1156,86292.0,86291.0,0.11464397]
[1741410086541,0.224,86292.0,86291.0,0.11464397]
[1741410086738,0.224,86292.0,86291.0,0.23055167]
[1741410087049,0.3399064,86292.0,86291.0,0.33865167]
[1741410088734,0.1084,86292.0,86291.0,0.33865167]
[1741410089143,0.1084,86292.0,86291.0,0.28097156]
[1741410089639,0.1084,86292.0,86291.0,0.33758186]
[1741410089841,0.2243064,86292.0,86291.0,0.33758186]
[1741410090040,0.2243064,86292.0,86291.0,0.22167416]
[1741410090941,0.1084,86292.0,86291.0,0.33758186]
[1741410092238,0.1084,86292.0,86291.0,0.27990175]
[1741410094451,0.04326772,86292.0,86291.0,0.27990175]
[1741410095353,0.19716529,86294.0,86293.0,0.1159051]
[1741410095851,0.08126159,86294.0,86293.0,0.1159051]
[1741410096049,0.3608,86313.0,86291.0,0.10631394]
[1741410096255,0.00060001,86313.0,86309.0,0.1158836]
[1741410096446,0.115891,86304.0,86300.0,0.13890739]
[1741410096745,0.0579439,86306.0,86305.0,0.1158889]
[1741410097753,0.1158903,86304.0,86301.0,0.1158933]
[1741410097947,0.115893,86302.0,86301.0,0.1158933]
[1741410098245,0.115893,86302.0,86301.0,0.05821319]
[1741410098450,0.1158943,86301.0,86300.0,0.1073]
[1741410098651,0.1174,86312.0,86300.0,0.2231957]
[1741410098847,0.0579404,86311.0,86302.0,0.057946]
[1741410099147,0.1158927,86303.0,86302.0,0.1158924]
[1741410099353,0.1158927,86303.0,86300.0,0.2231948]
[1741410099354,0.1158943,86301.0,86300.0,0.2231948]
[1741410099652,0.1158943,86301.0,86300.0,0.2231957]
[1741410100643,0.1158943,86301.0,86300.0,0.1073]
[1741410100844,0.3608,86306.0,86297.0,0.00017379]
[1741410100845,0.1158983,86298.0,86297.0,0.00017379]
[1741410101050,0.4766983,86298.0,86297.0,0.00017379]
[1741410101247,0.0579509,86296.0,86292.0,0.13890739]
[1741410101454,0.1159064,86292.0,86291.0,0.1333303]
[1741410102158,0.1159064,86292.0,86291.0,0.07672]
[1741410102355,0.2316064,86292.0,86291.0,0.07672]
[1741410103046,0.2316064,86292.0,86291.0,0.1926277]
[1741410103649,0.2316064,86292.0,86291.0,0.1159077]
[1741410103857,0.1157,86292.0,86290.0,0.12476301]
[1741410104058,0.14689735,86291.0,86290.0,0.12476301]
[1741410104259,0.14689735,86291.0,86290.0,0.0670829]
[1741410104459,0.14689735,86291.0,86290.0,0.24103389]
[1741410105158,0.14689735,86291.0,86290.0,0.17395099]
[1741410105560,0.03098965,86291.0,86290.0,0.17395099]
[1741410105958,0.03098965,86291.0,86290.0,0.28986009]
[1741410106263,0.1157,86292.0,86291.0,0.1159077]
[1741410106559,0.057948,86300.0,86291.0,0.1159077]
[1741410106560,0.07672,86313.0,86291.0,0.1162]
[1741410106749,0.07672,86313.0,86303.0,0.1158916]
[1741410106750,0.1159303,86304.0,86303.0,0.1158916]
[1741410107352,0.1158903,86304.0,86303.0,0.05821149]
[1741410107852,0.36140001,86306.0,86302.0,0.1131]
[1741410108052,0.1158903,86304.0,86303.0,0.2331889]
[1741410108251,0.1158916,86303.0,86302.0,0.1131]
[1741410108452,0.3342916,86303.0,86302.0,0.1131]
[1741410110147,0.108,86303.0,86302.0,0.228993]
[1741410110359,0.108,86303.0,86302.0,0.17131289]
[1741410110858,0.108,86303.0,86302.0,0.28391289]
[1741410111157,0.108,86303.0,86294.0,0.13890739]
[1741410111365,0.115901,86296.0,86295.0,0.1126]
[1741410112250,0.115901,86296.0,86295.0,0.2285024]
[1741410112447,0.341001,86296.0,86295.0,0.2285024]
[1741410112658,0.341001,86296.0,86295.0,0.1126]
[1741410112959,0.2251,86296.0,86290.0,0.06622087]
[1741410113162,0.1159077,86291.0,86290.0,0.1126]
[1741410113358,0.1159077,86291.0,86290.0,0.05491989]
[1741410113553,0.1159077,86291.0,86290.0,0.34586415]
[1741410113753,0.1159077,86291.0,86290.0,0.28772899]
[1741410113958,0.2247,86291.0,86290.0,0.34612469]
[1741410114159,0.111,86291.0,86290.0,0.34612469]
[1741410114359,0.03139352,86291.0,86290.0,0.34612469]
[1741410114754,0.14509352,86291.0,86290.0,0.34612469]
[1741410114954,0.26100122,86291.0,86290.0,0.34612469]
[1741410116256,0.16635,86297.0,86290.0,0.34612469]
[1741410116257,0.00060001,86306.0,86305.0,0.1158889]
[1741410116565,0.1091,86315.0,86307.0,0.0579431]
[1741410116754,0.1091,86309.0,86308.0,0.2272849]
[1741410117849,0.1091,86309.0,86308.0,0.28496051]
[1741410118255,0.1122,86312.0,86308.0,0.28496051]
[1741410118461,0.00017379,86314.0,86309.0,0.1650413]
[1741410118664,0.00017379,86314.0,86313.0,0.1158782]
[1741410119457,0.00017379,86314.0,86313.0,0.05819809]
[1741410120455,0.3608,86340.0,86323.0,0.1158648]
[1741410120655,0.1158451,86338.0,86323.0,0.4766648]
[1741410120860,0.1158451,86338.0,86336.0,0.1158467]
[1741410121166,0.1158451,86338.0,86337.0,0.1159]
[1741410121375,0.1158412,86341.0,86339.0,0.1158432]
[1741410121666,0.1158406,86341.0,86340.0,0.1159]
[1741410121960,0.1158406,86341.0,86340.0,0.17251612]
[1741410122167,0.05073835,86341.0,86340.0,0.17251612]
[1741410122558,0.36148,86344.0,86341.0,0.0579203]
[1741410122765,0.3608,86344.0,86342.0,0.1158393]
[1741410122967,0.3608,86344.0,86343.0,0.1158379]
[1741410125670,0.475,86344.0,86343.0,0.05815779]
[1741410125868,0.475,86344.0,86343.0,0.17652795]
[1741410127158,0.5908366,86344.0,86343.0,0.17652795]
[1741410127470,0.475,86344.0,86343.0,0.17652795]
[1741410128665,0.2300366,86344.0,86343.0,0.11837016]
[1741410128877,0.2300366,86344.0,86343.0,0.23420806]
[1741410129068,0.1142,86344.0,86343.0,0.23420806]
[1741410129860,0.36097379,86346.0,86345.0,0.1158353]
[1741410130271,0.1158366,86344.0,86343.0,0.11837016]
[1741410130771,0.1121,86345.0,86344.0,0.1158366]
[1741410131566,0.115846,86337.0,86333.0,0.18618]
[1741410131766,0.11585,86334.0,86333.0,0.18618]
[1741410132169,0.050748,86334.0,86333.0,0.18618]
[1741410132571,0.25660248,86336.0,86333.0,0.1095]
[1741410132771,0.11585,86334.0,86333.0,0.1095]
[1741410132967,0.25660248,86336.0,86335.0,0.1158487]
[1741410134674,0.25660248,86336.0,86335.0,0.05816859]
[1741410136171,0.08817888,86336.0,86335.0,0.05816859]
[1741410137803,0.08817888,86336.0,86333.0,0.2790254]
[1741410138005,0.08817888,86336.0,86335.0,0.1158487]
[1741410139991,0.08817888,86336.0,86333.0,0.2211]
[1741410140298,0.1158514,86333.0,86332.0,0.06637044]
[1741410140600,0.1158514,86333.0,86332.0,0.1158527]
[1741410140797,0.1158514,86333.0,86332.0,0.05817259]
[1741410140991,0.2895245,86335.0,86334.0,0.11585]
[1741410141185,0.1174,86335.0,86334.0,0.11585]
[1741410141391,0.1158398,86342.0,86332.0,0.10696226]
[1741410141602,0.1174,86342.0,86340.0,0.115841]
[1741410141890,0.1174,86342.0,86341.0,0.3357406]
[1741410143271,0.36097379,86346.0,86341.0,0.3357406]
[1741410143473,0.00017379,86346.0,86345.0,0.1158353]
[1741410143672,0.00017379,86346.0,86345.0,0.05815519]
[1741410146878,0.00017379,86346.0,86343.0,0.4187185]
[1741410147078,0.00017379,86346.0,86345.0,0.1158353]
[1741410147280,0.05037984,86349.0,86344.0,0.2232]
[1741410147480,0.05037984,86349.0,86348.0,0.1158312]
[1741410147678,0.16620974,86349.0,86348.0,0.1158312]
[1741410147876,0.08665047,86349.0,86348.0,0.1158312]
[1741410149789,0.08665047,86349.0,86348.0,0.05815109]
[1741410150785,4e-05,86353.0,86352.0,0.1158259]
[1741410150988,0.1158645,86353.0,86352.0,0.1158259]
[1741410151376,4e-05,86353.0,86348.0,0.2856154]
[1741410151575,0.1158275,86351.0,86350.0,0.1158275]
[1741410151778,4e-05,86353.0,86352.0,0.1158259]
[1741410152077,4e-05,86353.0,86352.0,0.4766259]
[1741410152588,0.00013529,86355.0,86354.0,0.1158232]
[1741410152886,0.00013529,86355.0,86354.0,0.05814309]
[1741410153384,0.00013529,86355.0,86354.0,0.28964309]
[1741410153585,0.00017379,86357.0,86354.0,0.28975891]
[1741410153776,0.00017379,86357.0,86356.0,0.1158205]
[1741410154484,0.057901,86370.0,86366.0,0.1158071]
[1741410154993,4e-05,86362.0,86361.0,0.1737201]
[1741410155482,4e-05,86362.0,86361.0,0.0579063]
[1741410155682,4e-05,86362.0,86358.0,0.0579088]
[1741410155683,0.1158218,86355.0,86354.0,0.00011582]
[1741410155883,0.1158272,86351.0,86350.0,0.56758875]
[1741410156085,0.1158299,86349.0,86348.0,0.00173722]
[1741410156477,0.229,86350.0,86334.0,0.4766492]
[1741410156681,0.2286312,86348.0,86341.0,0.04948]
[1741410156878,0.2286312,86348.0,86341.0,0.1653203]
[1741410157076,0.2286312,86348.0,86344.0,0.1158364]
[1741410157785,0.2286312,86348.0,86341.0,0.1653203]
[1741410157987,0.2286312,86348.0,86343.0,0.1158375]
[1741410158186,0.2286312,86348.0,86338.0,0.25475169]
[1741410158382,0.2286312,86348.0,86337.0,0.1158448]
[1741410158583,0.2286312,86348.0,86340.0,0.1158413]
[1741410158897,0.1128,86348.0,86330.0,0.09019719]
[1741410159086,0.1128,86348.0,86336.0,0.1158469]
[1741410159087,0.1158492,86337.0,86336.0,0.1158469]
[1741410159278,0.3608,86341.0,86338.0,0.115842]
[1741410159474,0.218,86340.0,86339.0,0.1158433]
[1741410160178,0.333842,86340.0,86339.0,0.1158433]
[1741410161693,0.333842,86340.0,86334.0,0.1158499]
[1741410161885,0.1158436,86339.0,86334.0,0.05814783]
[1741410162389,0.2233,86338.0,86334.0,0.05814783]
[1741410162785,0.1158473,86337.0,86334.0,0.05814783]
[1741410163088,0.2233,86338.0,86334.0,0.05814783]
[1741410163288,0.3391476,86336.0,86334.0,0.05814783]
[1741410163487,0.2233,86336.0,86334.0,0.05814783]
[1741410164078,0.2233,86336.0,86331.0,0.00017368]
[1741410164283,0.1158496,86335.0,86331.0,0.00017368]
[1741410164479,0.2233,86336.0,86331.0,0.00017368]
[1741410164684,0.2198,86334.0,86331.0,0.11602698]
[1741410164881,0.14023027,86334.0,86333.0,0.1158514]
[1741410165084,0.14023027,86334.0,86333.0,0.05814933]
[1741410165985,0.1158408,86341.0,86340.0,0.1158414]
[1741410166583,0.3608,86342.0,86331.0,0.00017368]
[1741410166787,0.0579215,86340.0,86331.0,0.11602758]
[1741410166993,0.1158527,86332.0,86331.0,0.11602758]
[1741410167386,0.1158527,86332.0,86331.0,0.16374882]
[1741410167994,0.0579252,86334.0,86331.0,0.10604675]
[1741410168187,0.1737767,86334.0,86333.0,0.1158514]
[1741410168582,0.1737767,86334.0,86333.0,0.3079514]
[1741410168795,0.1737767,86334.0,86333.0,0.1158514]
[1741410169184,0.10867138,86334.0,86333.0,0.1158514]
[1741410169387,0.10867138,86334.0,86333.0,0.108]
[1741410169694,0.16659658,86334.0,86333.0,0.108]
[1741410169990,0.2246,86337.0,86336.0,0.1158473]
[1741410170488,0.1097,86337.0,86336.0,0.3372473]
[1741410170983,0.1097,86337.0,86336.0,0.27954523]
[1741410171179,0.2268,86337.0,86336.0,0.27954523]
[1741410171798,0.2268,86337.0,86336.0,0.39194523]
[1741410171994,0.342646,86337.0,86336.0,0.39194523]
[1741410172295,0.342646,86337.0,86336.0,0.2214]
[1741410173599,0.26307463,86337.0,86336.0,0.2214]
[1741410174093,0.26307463,86337.0,86336.0,0.16369793]
[1741410176092,0.1158527,86332.0,86331.0,0.04772124]
[1741410176288,0.1158527,86332.0,86331.0,0.1174]
[1741410176493,0.1158527,86332.0,86331.0,0.233254]
[1741410177201,0.2252527,86332.0,86331.0,0.28895193]
[1741410178697,0.2252527,86332.0,86331.0,0.48105193]
[1741410178898,0.2252527,86332.0,86331.0,0.28895193]
[1741410179196,0.2252527,86332.0,86331.0,0.22215863]
[1741410180304,0.2252527,86332.0,86331.0,0.16445656]
[1741410183201,0.2252527,86332.0,86331.0,0.10675449]
[1741410185705,0.13121081,86332.0,86331.0,0.10675449]
[1741410186294,0.01535811,86332.0,86328.0,0.1124]
[1741410186496,0.3608,86329.0,86325.0,0.00017368]
[1741410186701,0.1158608,86326.0,86325.0,0.00017368]
[1741410187306,0.4766608,86326.0,86325.0,0.00017368]
[1741410187998,0.4766608,86326.0,86325.0,0.04876688]
[1741410189213,0.3608,86326.0,86319.0,0.72947459]
[1741410189407,0.1158688,86320.0,86319.0,0.72883459]
[1741410190209,0.1158688,86320.0,86319.0,0.73731073]
[1741410190908,0.1158688,86320.0,86319.0,0.00847614]
[1741410191108,0.1158742,86317.0,86316.0,0.1158736]
[1741410191609,0.2318742,86317.0,86316.0,0.1158736]
[1741410191809,0.1739368,86317.0,86316.0,0.1173]
[1741410192404,0.1739368,86317.0,86316.0,0.05959793]
[1741410192610,0.2898096,86317.0,86316.0,0.05959793]
[1741410193406,0.1739368,86317.0,86315.0,0.04783111]
[1741410193611,0.1739368,86317.0,86311.0,0.1098]
[1741410193807,0.1739368,86317.0,86310.0,0.13890739]
[1741410193808,0.1158755,86315.0,86310.0,0.13890739]
[1741410194115,0.1158755,86315.0,86314.0,0.0104187]
[1741410195510,0.5347368,86317.0,86287.0,0.72976]
[1741410195511,0.1158863,86307.0,86303.0,0.1169]
[1741410195715,0.1158863,86307.0,86306.0,0.40980294]
[1741410196210,0.1158863,86307.0,86306.0,0.0579002]
[1741410196515,0.1158903,86304.0,86303.0,0.1169]
[1741410196716,0.1158916,86303.0,86302.0,0.1172]
[1741410197608,0.0579449,86305.0,86302.0,0.1172]
[1741410197609,4e-05,86304.0,86302.0,0.233093]
[1741410197801,0.10654,86304.0,86303.0,0.1158916]
[1741410198005,0.1078,86321.0,86303.0,0.05649625]
[1741410198310,0.1158897,86305.0,86304.0,0.05818743]
[1741410198614,0.1123,86314.0,86304.0,0.16448743]
[1741410198804,0.1159277,86306.0,86305.0,0.1921]
[1741410199012,0.1159277,86306.0,86305.0,0.5300889]
[1741410199421,0.1638395,86313.0,86307.0,0.1158858]
[1741410199624,0.1158836,86309.0,86308.0,0.332]
[1741410199912,0.1123,86312.0,86311.0,0.1158809]
[1741410200115,0.1158828,86310.0,86309.0,0.1158833]
[1741410200509,0.1158828,86310.0,86309.0,0.3379833]
[1741410200708,0.1123,86312.0,86309.0,0.2221]
[1741410201009,0.1123,86312.0,86310.0,0.1158821]
[1741410201319,0.2182,86312.0,86310.0,0.1158821]
[1741410201517,0.2182,86312.0,86311.0,0.3473809]
[1741410204520,0.2182,86312.0,86311.0,0.28967883]
[1741410205711,0.2182,86312.0,86311.0,0.37142523]
[1741410206217,0.13860896,86312.0,86311.0,0.37142523]
[1741410207413,0.13860896,86312.0,86311.0,0.31372316]
[1741410207816,0.1059,86312.0,86311.0,0.31372316]
[1741410208707,0.04078031,86312.0,86311.0,0.31372316]
[1741410209315,0.1158724,86318.0,86311.0,0.31372316]
[1741410209525,0.1087,86317.0,86316.0,0.1158742]
[1741410209819,0.1087,86317.0,86316.0,0.1976206]
[1741410210216,0.2245728,86317.0,86316.0,0.1976206]
[1741410210417,0.36140001,86320.0,86316.0,0.0817464]
[1741410210710,0.00173838,86332.0,86331.0,0.115854]
[1741410211712,0.1066,86343.0,86342.0,0.1158393]
[1741410211912,0.00017378,86340.0,86339.0,0.1158433]
[1741410212113,0.00017378,86340.0,86339.0,0.2295433]
[1741410212315,0.00010362,86349.0,86348.0,0.1158312]
[1741410213517,0.00010362,86349.0,86348.0,0.05812913]
[1741410215524,0.00010362,86349.0,86346.0,0.0579165]
[1741410215727,0.1158326,86347.0,86346.0,0.1158323]
[1741410216117,0.1158326,86347.0,86346.0,0.12449691]
[1741410216514,0.05801872,86349.0,86348.0,0.05812913]
[1741410216729,0.28111872,86349.0,86348.0,0.05812913]
[1741410217125,0.22320362,86349.0,86348.0,0.05812913]
[1741410217327,0.11710362,86349.0,86348.0,0.05812913]
[1741410218831,0.1158326,86347.0,86346.0,0.00866461]
[1741410219027,0.1158346,86346.0,86343.0,0.1158369]
[1741410219227,0.1073,86345.0,86343.0,0.1158369]
[1741410219423,0.1073,86345.0,86344.0,0.1158366]
[1741410219624,0.1073,86345.0,86344.0,0.05813453]
[1741410222734,0.1073,86345.0,86344.0,0.1158366]
[1741410224334,0.0422051,86345.0,86344.0,0.1158366]
[1741410225230,0.1158332,86347.0,86345.0,0.1158347]
[1741410225429,0.1158387,86343.0,86341.0,0.1158404]
[1741410225635,0.1158387,86343.0,86341.0,0.05813833]
[1741410225836,0.1158387,86343.0,86342.0,0.1158393]
[1741410226331,0.00010362,86349.0,86339.0,0.17127533]
[1741410226527,0.115842,86340.0,86339.0,0.05757533]
[1741410226721,0.1158487,86335.0,86334.0,0.00017378]
[1741410227128,0.4766487,86335.0,86334.0,0.00017378]
[1741410228835,0.4766487,86335.0,86327.0,0.72924]
[1741410228836,0.1158581,86328.0,86327.0,0.72978441]
[1741410229138,0.4766581,86328.0,86327.0,0.67171171]
[1741410229543,0.3608,86328.0,86308.0,0.11789986]
[1741410229839,0.3608,86328.0,86306.0,0.1166671]
[1741410229840,0.1158769,86314.0,86312.0,0.00017378]
[1741410230343,0.3399769,86314.0,86312.0,0.00017378]
[1741410230739,0.2241,86314.0,86312.0,0.00017378]
[1741410230942,0.1158782,86313.0,86312.0,0.00017378]
[1741410231452,0.2292782,86313.0,86312.0,0.17262146]
[1741410231740,0.2292782,86313.0,86312.0,0.05835131]
[1741410232937,0.2292782,86313.0,86312.0,0.16705131]
[1741410233548,0.2292782,86313.0,86312.0,0.16782594]
[1741410234348,0.1134,86313.0,86312.0,0.16782594]
[1741410234553,0.1134,86313.0,86312.0,0.28370554]
[1741410234748,0.1134,86313.0,86312.0,0.22600347]
[1741410235260,0.2292782,86313.0,86312.0,0.22600347]
[1741410235558,0.2292782,86313.0,86312.0,0.05912594]
[1741410235758,0.0579398,86312.0,86310.0,0.00031]
[1741410235945,0.1158809,86311.0,86310.0,0.1161916]
[1741410236142,0.2311809,86311.0,86310.0,0.1161916]
[1741410236350,0.16605869,86311.0,86310.0,0.1161916]
[1741410236757,0.27415869,86311.0,86310.0,0.1161916]
[1741410237055,0.27415869,86311.0,86310.0,0.00031]
[1741410237754,0.27415869,86311.0,86309.0,0.05849033]
[1741410237957,0.1158822,86310.0,86309.0,0.16639033]
[1741410238257,0.1158822,86310.0,86309.0,0.1079]
[1741410238458,0.1158836,86309.0,86308.0,0.05864305]
[1741410238664,0.2239,86310.0,86303.0,0.2848458]
[1741410238852,0.1158876,86306.0,86305.0,0.1171]
[1741410239252,0.3397876,86306.0,86305.0,0.1171]
[1741410239757,0.2239,86306.0,86304.0,0.41908416]
[1741410239956,0.1158889,86305.0,86304.0,0.41908416]
[1741410240349,0.3397889,86305.0,86304.0,0.53497446]
[1741410240546,0.1076,86305.0,86304.0,0.53497446]
[1741410240959,0.2234889,86305.0,86304.0,0.17417446]
[1741410241150,0.2234889,86305.0,86304.0,0.05828416]
[1741410241352,0.1158903,86304.0,86303.0,0.1171]
[1741410241551,0.114,86304.0,86303.0,0.29187776]
[1741410242251,0.2203,86304.0,86303.0,0.29187776]
[1741410244065,0.2203,86304.0,86303.0,0.23417569]
[1741410246267,0.3361903,86304.0,86303.0,0.05888616]
[1741410246459,0.1158983,86298.0,86297.0,0.72964]
[1741410246759,0.1158983,86298.0,86297.0,0.72896]
[1741410246953,0.1158983,86298.0,86297.0,0.67125793]
[1741410247662,0.3350983,86298.0,86297.0,0.67125793]
[1741410248867,0.3350983,86298.0,86297.0,0.68010541]
[1741410250064,0.3350983,86298.0,86297.0,0.62240334]
[1741410250868,0.2192,86298.0,86297.0,0.73830304]
[1741410251063,0.2192,86298.0,86297.0,0.96730304]
[1741410251263,0.2192,86298.0,86297.0,1.08080304]
[1741410251661,0.3350983,86298.0,86297.0,0.96490334]
[1741410252968,0.3350983,86298.0,86297.0,0.90720127]
[1741410256066,0.3350983,86298.0,86297.0,0.8494992]
[1741410258768,0.3350983,86298.0,86297.0,0.7368992]
[1741410258971,0.3350983,86298.0,86297.0,0.6233992]
[1741410259176,0.3350983,86298.0,86297.0,0.44929713]
[1741410262067,0.3350983,86298.0,86297.0,0.00867369]
[1741410262269,0.2192,86298.0,86280.0,0.04943693]
[1741410262482,0.1159319,86273.0,86272.0,0.3915942]
[1741410263177,0.15000796,86274.0,86273.0,0.1159319]
[1741410263377,0.15004796,86274.0,86273.0,0.2306319]
[1741410263779,0.25914796,86274.0,86273.0,0.233]
[1741410264775,4e-05,86274.0,86273.0,0.3489319]
[1741410265170,4e-05,86274.0,86273.0,0.29122983]
[1741410266075,0.1159706,86274.0,86273.0,0.17529793]
[1741410266377,0.1076,86277.0,86273.0,0.29122983]
[1741410266573,0.1159267,86277.0,86273.0,0.29122983]
[1741410266773,4e-05,86275.0,86274.0,0.1159306]
[1741410267172,4e-05,86275.0,86274.0,0.2272306]
[1741410267571,0.1159692,86275.0,86274.0,0.2272306]
[1741410267972,4e-05,86275.0,86274.0,0.2272306]
[1741410268174,4e-05,86275.0,86274.0,0.16952853]
[1741410268575,0.11724,86275.0,86274.0,0.16952853]
[1741410268776,0.11724,86275.0,86274.0,0.1113]
[1741410268777,0.2331692,86275.0,86274.0,0.1113]
[1741410271286,0.2331692,86275.0,86274.0,0.05359793]
[1741410273080,0.15354526,86275.0,86274.0,0.17089793]
[1741410273884,0.15354526,86275.0,86274.0,0.36299793]
[1741410274092,0.15354526,86275.0,86274.0,0.17089793]
[1741410274280,0.15354526,86275.0,86274.0,0.11319586]
[1741410277397,0.15354526,86275.0,86274.0,0.05549379]
[1741410277780,0.03761606,86275.0,86274.0,0.17142439]
[1741410278295,0.15354526,86275.0,86274.0,0.17142439]
[1741410279792,0.15354526,86275.0,86274.0,0.05549379]
[1741410280385,0.1159306,86274.0,86273.0,0.11372342]
[1741410280586,0.1136,86274.0,86273.0,0.11372342]
[1741410280986,0.3456306,86274.0,86273.0,0.11372342]
[1741410281598,0.2660055,86274.0,86273.0,0.11372342]
[1741410283396,0.2660055,86274.0,86273.0,0.05602135]
[1741410283991,0.1500749,86274.0,86272.0,0.16732639]
[1741410284196,0.1159319,86273.0,86272.0,0.16732639]
[1741410284494,0.1159319,86273.0,86272.0,0.28325969]
[1741410284806,0.2261319,86273.0,86272.0,0.28325969]
[1741410285793,0.2261319,86273.0,86272.0,0.16732639]
[1741410286397,0.1159319,86273.0,86272.0,0.10962432]
[1741410286591,0.1159319,86273.0,86272.0,0.22555762]
[1741410286792,0.1161,86274.0,86273.0,0.1159319]
[1741410286992,0.1159319,86273.0,86272.0,0.10962432]
[1741410288589,0.1159319,86273.0,86272.0,0.22555762]
[1741410288790,0.1161,86274.0,86272.0,0.22555762]
[1741410289196,0.1159319,86273.0,86272.0,0.22555762]
[1741410289397,0.1159319,86273.0,86272.0,0.16785555]
[1741410289793,0.057965,86275.0,86272.0,0.16785555]
[1741410290604,0.1159319,86273.0,86272.0,0.16785555]
[1741410290798,0.057965,86275.0,86272.0,0.16785555]
[1741410291691,0.1159319,86273.0,86272.0,0.05192225]
[1741410291897,0.115934,86272.0,86270.0,0.0579678]
[1741410292295,0.1159346,86271.0,86270.0,0.10777109]
[1741410292495,0.1159346,86271.0,86270.0,0.04980329]
[1741410292696,0.4767346,86271.0,86270.0,0.1159354]
[1741410293700,0.3608,86271.0,86270.0,0.1159354]
[1741410293901,0.1159335,86272.0,86271.0,0.1159341]
[1741410295403,0.1159335,86272.0,86271.0,0.05823203]
[1741410295606,0.0579655,86274.0,86270.0,0.16488739]
[1741410295802,0.1159346,86271.0,86270.0,0.16488739]
[1741410296006,0.0579655,86274.0,86270.0,0.16488739]
[1741410296208,0.1159346,86271.0,86270.0,0.16488739]
[1741410296409,0.05223037,86271.0,86270.0,0.16488739]
[1741410296708,0.05223037,86271.0,86270.0,0.04895199]
[1741410296906,0.1159373,86269.0,86268.0,0.73858514]
[1741410297208,0.1159373,86269.0,86268.0,0.73790514]
[1741410297610,0.2266373,86269.0,86268.0,0.78775707]
[1741410297802,0.1107,86269.0,86268.0,0.90369577]
[1741410298107,0.2266373,86269.0,86268.0,1.01335707]
[1741410298610,0.2266373,86269.0,86268.0,0.16875707]
[1741410299505,0.3395373,86269.0,86268.0,0.16875707]
[1741410301608,0.3395373,86269.0,86268.0,0.111055]
[1741410303609,0.27438076,86269.0,86268.0,0.111055]
[1741410303815,0.27438076,86269.0,86268.0,0.11954692]
[1741410304606,0.194745,86269.0,86268.0,0.06184485]
[1741410304801,0.231,86269.0,86268.0,0.17778355]
[1741410305115,0.3469373,86269.0,86268.0,0.06184485]
[1741410305616,0.3469373,86269.0,86268.0,0.11037388]
[1741410306517,0.231,86269.0,86268.0,0.22631258]
[1741410306811,0.1129,86269.0,86268.0,0.22631258]
[1741410307118,0.1129,86269.0,86268.0,0.34191258]
[1741410307418,0.2288373,86269.0,86268.0,0.11037388]
[1741410307625,0.2288373,86269.0,86268.0,0.05267181]
[1741410310717,0.115944,86264.0,86263.0,0.10296974]
[1741410311019,0.115944,86264.0,86263.0,0.10302211]
[1741410311318,0.115944,86264.0,86263.0,0.15175547]
[1741410311718,0.333944,86264.0,86263.0,0.15175547]
[1741410312721,0.25430758,86264.0,86263.0,0.26770087]
[1741410313016,0.333944,86264.0,86263.0,0.04878573]
[1741410313717,0.1159454,86263.0,86262.0,0.1159458]
[1741410313918,0.1159454,86263.0,86261.0,0.23356376]
[1741410314117,0.1159454,86263.0,86262.0,0.2335467]
[1741410314422,0.1169,86265.0,86264.0,0.115944]
[1741410314718,0.2328427,86265.0,86264.0,0.115944]
[1741410314914,0.3434427,86265.0,86264.0,0.115944]
[1741410315315,0.3434427,86265.0,86264.0,0.233544]
[1741410315617,0.2275,86265.0,86264.0,0.233544]
[1741410315819,0.13338532,86265.0,86264.0,0.233544]
[1741410316014,0.1106,86265.0,86264.0,0.351144]
[1741410316210,0.03096468,86265.0,86264.0,0.351144]
[1741410316715,0.03096468,86265.0,86264.0,0.29344193]
[1741410319724,0.03096468,86265.0,86264.0,0.2352]
[1741410320121,0.03096468,86265.0,86264.0,0.351144]
[1741410321318,0.06723002,86267.0,86266.0,0.1159413]
[1741410322924,0.06723002,86267.0,86266.0,0.05823923]
[1741410323119,0.36144,86268.0,86266.0,0.05823923]
[1741410323120,0.36144,86268.0,86267.0,0.11594]
[1741410323321,0.3608,86268.0,86267.0,0.34184]
[1741410323729,0.29564536,86268.0,86267.0,0.34184]
[1741410325425,0.28744045,86268.0,86267.0,0.34184]
[1741410325613,0.00064,86275.0,86274.0,0.1159306]
[1741410325814,0.00017378,86281.0,86280.0,0.05822043]
[1741410326713,0.00017378,86281.0,86271.0,0.07664]
[1741410326921,0.1159266,86277.0,86276.0,0.1151]
[1741410327116,0.1159398,86268.0,86265.0,0.115942]
[1741410327323,0.0579681,86270.0,86267.0,0.11594]
[1741410327523,0.0579681,86270.0,86268.0,0.3451373]